Cogmind - Beta 11 @@@ ROGUE MODE // 2022.03.22 @ 22:42:30 Player: albenzo Result: Destroyed by D-53 Grenadier with Mini Grenade Launcher Performance ------------- Evolutions (0) 0 Regions Visited (4) 800 Robots Destroyed (14) 70 Value Destroyed (307) 307 Prototype IDs (25) 500 Alien Tech Used (0) 0 Bonus (300) 300 TOTAL SCORE: 1977 Bonus ------- Aligned with FarCom 300 Cogmind --------- Core Integrity 0/250 Matter 224/300 Energy 181/265 System Corruption 7% Temperature Cool (0) Movement Core (200) Ox3 Location -9/Mines Parts ------- > --- POWER (1) -------- Improved Ion Engine > --- PROPULSION (2) --- (None) > --- UTILITY (2) ------ Small Storage Unit > --- WEAPON (2) ------- (None) > --- INVENTORY (8) ---- Aluminum Leg Aluminum Leg Field Lobotomy Kit (5) Heavy Hammer Peak State ------------ > --- POWER ------------ Improved Ion Engine > --- PROPULSION ------- Aluminum Leg Aluminum Leg > --- UTILITY ---------- Heat Sink Small Storage Unit > --- WEAPON ----------- Assault Rifle Rocket Launcher > --- INVENTORY -------- Improved Ion Engine Aluminum Leg Aluminum Leg Aluminum Leg Assault Rifle Light Assault Rifle Light Cannon Heavy Hammer [Rating: 10] Favorites ----------- Power Improved Ion Engine Engine Improved Ion Engine Power Core Light Nuclear Core Propulsion Aluminum Leg Leg Aluminum Leg Utility Small Storage Unit Device Heat Sink Storage Small Storage Unit Weapon Assault Rifle Energy Gun Medium Laser Ballistic Gun Assault Rifle Ballistic Cannon Light Cannon Launcher Rocket Launcher Build | -11 -10 -10 -10 -9 ------- Run | Scr Mat Min Exi Min Slots Evolved . | . . . . . Power . | . . . . . Propulsion . | . . . . . Utility . | . . . . . Weapon . | . . . . . Parts Attached 31 | 6 16 3 . 6 Power 5 | 1 3 . . 1 Engine 4 | 1 2 . . 1 Core 1 | . 1 . . . Reactor . | . . . . . Propulsion 10 | 2 6 1 . 1 Treads . | . . . . . Leg 10 | 2 6 1 . 1 Wheel . | . . . . . Hover . | . . . . . Flight . | . . . . . Utility 6 | 1 4 . . 1 Device 3 | . 2 . . 1 Storage 3 | 1 2 . . . Processor . | . . . . . Hackware . | . . . . . Protection . | . . . . . Artifact . | . . . . . Weapon 10 | 2 3 2 . 3 Energy Gun 1 | 1 . . . . Energy Cannon . | . . . . . Ballistic Gun 6 | 1 3 1 . 1 Ballistic Cannon 1 | . . . . 1 Launcher 2 | . . 1 . 1 Special Weapon . | . . . . . Impact Weapon . | . . . . . Slashing Weapon . | . . . . . Piercing Weapon . | . . . . . Special Melee Weapon . | . . . . . Unidentified Prototypes . | . . . . . Parts Lost 9 | . . . . 9 Power 1 | . . . . 1 Propulsion 3 | . . . . 3 Utility 1 | . . . . 1 Weapon 4 | . . . . 4 Highest Loss Streak 9 | . . . . 9 To Critical Strikes . | . . . . . Average Slot Usage (%) 97 | . 96 100 100 95 Engine 11 | . 9 14 14 14 Core 2 | . 4 . . . Leg 28 | . 28 28 28 28 Device 12 | . 10 14 14 10 Storage 14 | . 14 14 14 14 Ballistic Gun 27 | . 27 27 28 23 Naked Turns . | . . . . . Heaviest Build 22 | 11 22 17 17 17 Greatest Support 20 | 20 20 20 20 20 Greatest Overweight (x) 1 | 1 1 . . . Average Overweight (x) . | . . . . . Largest Inventory Capacity 10 | 8 10 8 8 8 Average Capacity 8 | 7 8 8 8 8 Most Carried 9 | 8 9 8 8 8 Average Carried 7 | 4 7 8 8 7 Final Capacity 8 | 8 8 8 8 8 Final Carried 8 | 6 8 8 8 4 Class Distribution -------------------- 84% | Mutant 15% | Scavenger-Mutant Dominant Class ---------------- Mutant | -10/Materials Mutant | -10/Mines Mutant | -10/Exiles Mutant | -9/Mines Resources | -11 -10 -10 -10 -9 ----------- Run | Scr Mat Min Exi Min Matter Collected 636 | 176 321 105 . 34 Remotely . | . . . . . Salvage Created 403 | . 300 78 . 25 Parts 28 | . 19 9 . . Haulers Intercepted . | . . . . . Recyclers Shooed . | . . . . . Parts Field Recycled . | . . . . . Retrieved Matter . | . . . . . Parts Self-Destructed . | . . . . . Prevented . | . . . . . Kills | -11 -10 -10 -10 -9 ------- Run | Scr Mat Min Exi Min Combat Hostiles Destroyed 16 | . 8 4 . 4 Guns 9 | . 8 1 . . AOE 7 | . . 3 . 4 Classes Destroyed 5 | . 4 . . 1 Worker 1 | . 1 . . . Operator 1 | . 1 . . . Swarmer 6 | . 3 3 . . Grunt 6 | . 5 1 . . Assembled 4 | . . . . 4 Best Kill Streak 4 | . 3 3 . 4 Combat Bots Only 4 | . 3 3 . 4 Max Kills in Single Turn 3 | . 2 3 . 2 Gunslinging . | . . . . . Exploded 3 | . . 3 . 2 Melee . | . . . . . Uniques/NPCs Destroyed . | . . . . . Combat | -11 -10 -10 -10 -9 -------- Run | Scr Mat Min Exi Min Damage Taken 1345 | . 441 110 . 794 Core 258 | . 99 47 . 112 Absorbed by Shields . | . . . . . Regen/Repaired (Parts) 32 | . 32 . . . Core Remaining (%) 100 | 100 . . . . Volleys Fired 55 | . 43 6 . 6 Largest 2 | . 2 2 . 2 Hottest 55 | . 40 53 . 55 Shots Fired 107 | . 85 12 . 10 Gun 100 | . 85 11 . 4 Cannon 3 | . . . . 3 Launcher 4 | . . 1 . 3 Special . | . . . . . Kinetic 103 | . 85 11 . 7 Thermal . | . . . . . Explosive 4 | . . 1 . 3 Electromagnetic . | . . . . . Robot Hit Streak 12 | . 12 5 . 7 Robot Miss Streak 3 | . 3 1 . 2 Penetration Max . | . . . . . Secondary Targets 1 | . 1 . . . Max Gunslinging Chain 1 | . 1 . . . Shots Hit Robots 67 | . 52 8 . 7 Core Hits 42 | . 24 6 . 12 Critical Kills . | . . . . . Critical Parts Destroyed . | . . . . . Critical Strikes 1 | . . . . 1 Blast 1 | . . . . 1 Melee Attacks . | . . . . . Impact . | . . . . . Slashing . | . . . . . Piercing . | . . . . . Sneak Attacks . | . . . . . Combat Hostiles . | . . . . . Follow-up Attacks . | . . . . . Damage Inflicted 1263 | . 482 242 . 539 Guns 611 | . 482 92 . 37 Cannons 53 | . . . . 53 Explosions 599 | . . 150 . 449 Melee . | . . . . . Ramming . | . . . . . Kinetic 664 | . 482 92 . 90 Thermal . | . . . . . Explosive 599 | . . 150 . 449 Electromagnetic . | . . . . . Impact . | . . . . . Slashing . | . . . . . Piercing . | . . . . . Highest Corruption 7 | . 2 2 2 7 Average Corruption 2 | . 2 2 2 3 Corruption Purged . | . . . . . Corruption Blocked . | . . . . . Effects 19 | . 6 8 4 1 Message Errors 4 | . 3 1 . . Matter Fused 4 | . 1 1 2 . Heat Flow Errors 1 | . . 1 . . Energy Discharges 5 | . . 4 1 . Data Loss (minor) 3 | . 1 1 1 . Data Loss (major) 1 | . . . . 1 Weapon Failures 1 | . 1 . . . Overload Shots . | . . . . . Overflow Damage 30 | . . . . 30 Projectiles . | . . . . . Explosions 30 | . . . . 30 Melee . | . . . . . Knockbacks 2 | . . . . 2 Impact . | . . . . . Kinetic 2 | . . . . 2 Secondary . | . . . . . Self-Inflicted Damage 89 | . . 43 . 46 Shots 2 | . . 1 . 1 Rammed . | . . . . . Targets Rammed . | . . . . . Kicked . | . . . . . Crushed . | . . . . . Highest Temperature 146 | . 33 146 . . Average Temperature 21 | . 10 78 . . Received Heat Transfer 222 | . 195 27 . . Siege Activations . | . . . . . Robots Corrupted . | . . . . . Combat Hostiles . | . . . . . Parts Fried . | . . . . . Impact Corruptions . | . . . . . Robots Melted . | . . . . . Combat Hostiles . | . . . . . Parts Melted . | . . . . . Heat Transferred . | . . . . . Parts Sabotaged . | . . . . . Parts Stolen . | . . . . . Parts Stripped . | . . . . . Power Chain Reactions . | . . . . . Missiles Intercepted . | . . . . . Alert | -11 -10 -10 -10 -9 ------- Run | Scr Mat Min Exi Min Peak Influence 290 | . 290 173 . 51 Initial 1 | . . 1 . . Average 82 | . 110 51 . 7 Maximum Alert Level 1 | . 1 . . . Low Security (%) 91 | 100 85 100 . 100 Level 1 8 | . 14 . . . Level 2 . | . . . . . Level 3 . | . . . . . Level 4 . | . . . . . Level 5 . | . . . . . High Security . | . . . . . Max Security . | . . . . . Squads Dispatched 3 | . 3 . . . Investigation 1 | . 1 . . . Extermination . | . . . . . Reinforcement 2 | . 2 . . . Assault . | . . . . . Garrison . | . . . . . Intercept . | . . . . . Searches Triggered . | . . . . . Construction Impeded . | . . . . . Haulers Reinforced . | . . . . . Active Scanning Responses . | . . . . . Cargo Convoy Interrupts . | . . . . . Stealth | -11 -10 -10 -10 -9 --------- Run | Scr Mat Min Exi Min Distress Signals 4 | . 4 . . . Communications Jammed . | . . . . . Distress Signals . | . . . . . Times Spotted 44 | . 19 7 . 18 Peak Tracking Total 12 | . 4 3 . 12 Tactical Retreats 5 | . 2 1 . 2 Traps | -11 -10 -10 -10 -9 ------- Run | Scr Mat Min Exi Min Traps Triggered 2 | . 2 . . . Indirectly . | . . . . . Trap Hack Attempts . | . . . . . Triggered . | . . . . . Disarmed . | . . . . . Reprogrammed . | . . . . . Reused . | . . . . . Traps Extracted . | . . . . . Installed . | . . . . . Triggered . | . . . . . Machines | -11 -10 -10 -10 -9 ---------- Run | Scr Mat Min Exi Min Machines Disabled . | . . . . . Max in Single Turn . | . . . . . Machines Sabotaged . | . . . . . Garrisons Compromised . | . . . . . Overloaded Fab Kills . | . . . . . Hacking | -11 -10 -10 -10 -9 --------- Run | Scr Mat Min Exi Min Machines Accessed 7 | . 5 1 1 . Terminals 4 | . 3 1 . . Fabricators . | . . . . . Repair Stations 1 | . 1 . . . Recycling Units 1 | . 1 . . . Scanalyzers . | . . . . . Garrison Access . | . . . . . Total Hacks 19 | . 16 2 1 . Successful 12 | . 10 1 1 . Failed 6 | . 5 1 . . Catastrophic 1 | . . 1 . . Database Lockouts 1 | . 1 . . . Manual 11 | . 8 2 1 . Terminals 14 | . 12 2 . . Fabricators . | . . . . . Repair Stations 3 | . 3 . . . Recycling Units 1 | . 1 . . . Scanalyzers . | . . . . . Garrison Access . | . . . . . Terminal Hacks 9 | . 7 1 1 . Part Schematic 1 | . 1 . . . Robot Analysis 1 | . 1 . . . Prototype ID Bank 1 | . 1 . . . Branch Access Points 1 | . 1 . . . Alert Level 3 | . 2 1 . . Locate Traps 1 | . 1 . . . EX-Prototype ID Bank 1 | . . . 1 . Fabricator Hacks . | . . . . . Repair Station Hacks 2 | . 2 . . . Scan Component 1 | . 1 . . . Repair 1 | . 1 . . . Recycling Unit Hacks 1 | . 1 . . . Report Inventory 1 | . 1 . . . Scanalyzer . | . . . . . Garrison Access Hacks . | . . . . . Unauthorized Hacks . | . . . . . Terminals . | . . . . . Fabricators . | . . . . . Repair Stations . | . . . . . Recycling Units . | . . . . . Scanalyzers . | . . . . . Garrison Access . | . . . . . Data Cores Recovered 1 | . 1 . . . Used . | . . . . . Hacking Detections 5 | . 4 1 . . Full Trace Events . | . . . . . Feedback Events . | . . . . . Feedback Blocked . | . . . . . Robot Schematics Acquired . | . . . . . Robots Built . | . . . . . Authchips . | . . . . . Time . | . . . . . Total Robot Build Rating . | . . . . . Part Schematics Acquired 1 | . 1 . . . Parts Built . | . . . . . Authchips . | . . . . . Time . | . . . . . Total Part Build Rating . | . . . . . Parts Repaired 1 | . 1 . . . Time 26 | . 26 . . . Parts Recycled . | . . . . . Recycled Matter . | . . . . . Retrieved Matter . | . . . . . Retrieved Components . | . . . . . Parts Scanalyzed . | . . . . . Part Schematics Acquired . | . . . . . Parts Damaged . | . . . . . Bothacking | -11 -10 -10 -10 -9 ------------ Run | Scr Mat Min Exi Min Used RIF Installer . | . . . . . Robots Hacked . | . . . . . Non-combat . | . . . . . Combat . | . . . . . Robot Hacks Applied . | . . . . . Relay Couplers Released . | . . . . . Fabnet Peak Effective % . | . . . . . Robots Rewired . | . . . . . Allies Hacked . | . . . . . Hacks Repelled . | . . . . . Allies | -11 -10 -10 -10 -9 -------- Run | Scr Mat Min Exi Min Total Allies . | . . . . . Largest Group . | . . . . . Highest-Rated Group . | . . . . . Highest-Rated Ally . | . . . . . Total Orders . | . . . . . Ally Attacks . | . . . . . Total Damage . | . . . . . Kills . | . . . . . Allies Corrupted . | . . . . . Allies Melted . | . . . . . Intel | -11 -10 -10 -10 -9 ------- Run | Scr Mat Min Exi Min Robot Analysis Total 1 | . 1 . . . Derelict Logs Recovered 2 | . . 2 . . Drone Launches . | . . . . . Drone Recoveries . | . . . . . Exploration | -11 -10 -10 -10 -9 ------------- Run | Scr Mat Min Exi Min Turns Passed 1836 | 77 927 420 315 97 Spaces Moved 1314 | 54 611 325 262 62 Core 7 | 7 . . . . Treads . | . . . . . Legs 1307 | 47 611 325 262 62 Wheels . | . . . . . Hover . | . . . . . Flight . | . . . . . Fastest Speed 50 | 50 120 120 120 120 Average Speed 120 | 113 120 120 120 120 Slowest Speed 190 | 120 190 120 120 120 Overloaded Moves . | . . . . . Propulsion Burnouts . | . . . . . Robots Hopped . | . . . . . Cave-ins Triggered . | . . . . . Exploration Rate (%) 46 | 4 85 53 69 23 Regions Visited 4 Branch Regions 3 Pre-discovered Areas . | . . . . . Known Exits Taken 1 | . 1 . . . Unknown Exits Taken 3 | 1 . 1 1 . Scrap Searched 1 | . . . . 1 Spaces Dug . | . . . . . Terrain Destroyed 36 | . . 14 . 22 Melee . | . . . . . Projectile . | . . . . . AOE 36 | . . 14 . 22 Terrain Rammed . | . . . . . Walls Destroyed . | . . . . . Machines Disabled . | . . . . . Actions | -11 -10 -10 -10 -9 --------- Run | Scr Mat Min Exi Min Total 1488 | 67 740 343 263 75 Wait 43 | . 36 7 . . Move 1310 | 53 610 324 261 62 Hop . | . . . . . Pick Up 23 | 8 13 1 1 . Fast Attach 8 | 4 3 . . 1 Attach 6 | 2 . . . 4 Detach . | . . . . . Swap 17 | . 13 3 . 1 Drop 26 | . 22 2 1 1 Fire 55 | . 43 6 . 6 Melee . | . . . . . Ram . | . . . . . Kick . | . . . . . Crush . | . . . . . Escape Stasis . | . . . . . Rewire . | . . . . . Trap . | . . . . . Miscellaneous . | . . . . . Route ------- -11/Scrapyard -10/Materials (discovered 5 exits: [*Mat x3] / *Min x2) -10/Mines (discovered 3 exits: [*Mat x2] / *Exi) -10/Exiles -9/Mines History --------- Turn | Location | Event 30 | -11/Scrapyard | Discovered new exit (range 16) 78 | -11/Scrapyard | Entered Materials 180 | -10/Materials | Identified exit to Mines 377 | -10/Materials | Discovered new exit (range 10) 622 | -10/Materials | Discovered new exit (range 11) 738 | -10/Materials | Discovered new exit (range 11) 818 | -10/Materials | Central database locked down 867 | -10/Materials | Build established: Mutant 879 | -10/Materials | Repaired Aluminum Leg 1005 | -10/Materials | Entered Mines 1113 | -10/Mines | Received a Rocket Launcher from a helpful Derelict 1119 | -10/Mines | Learned 2 Materials zone layouts 1153 | -10/Mines | Core integrity fell below 50% 1233 | -10/Mines | Discovered new exit (range 15) 1264 | -10/Mines | Learned Materials terminal intel 1268 | -10/Mines | Discovered new exit (range 7) 1420 | -10/Mines | Deemed a non-threat by the Exiles lab entrance 1420 | -10/Mines | Discovered new exit (range 5) 1425 | -10/Mines | Entered Exiles 1454 | -10/Exiles | Met 8R-AWN 1475 | -10/Exiles | Met EX-HEX 1507 | -10/Exiles | Met EX-BIN 1524 | -10/Exiles | Aligned with FarCom system 1525 | -10/Exiles | Given EX-Vault access code 1553 | -10/Exiles | Opened EX-Vault 1560 | -10/Exiles | Found Field Lobotomy Kit 1588 | -10/Exiles | Warned to stay clear of 0b10 Research branches 1650 | -10/Exiles | Met EX-DEC 1729 | -10/Exiles | Discovered new exit (range 10) 1740 | -10/Exiles | Left Exiles lab with Field Lobotomy Kit 1740 | -10/Exiles | Entered Mines 1788 | -9/Mines | Assembled infested the area 1793 | -9/Mines | Assisted by a Guerilla fighting off Assembled 1832 | -9/Mines | Core integrity fell below 20% 1837 | -9/Mines | Destroyed by D-53 Grenadier with Mini Grenade Launcher Last Messages --------------- 01818_ as-81999 destroyed. 01818_ as-42914 destroyed. 01819_ as-68982 destroyed. 01820_ Aluminum Leg destroyed. 01820_ Assault Rifle destroyed. 01825_ as-35969 destroyed. 01825_ as-72295 destroyed. 01825_ as-32598 destroyed. 01826_ The unstable cave ceiling collapses. 01827_ Imp. Ion Engine destroyed. 01830_ The unstable cave ceiling collapses. 01831_ D-53 Grenadier knocked back. 01833_ The unstable cave ceiling collapses. 01833_ Assault Rifle destroyed. 01834_ The unstable cave ceiling collapses. 01834_ D-53 Grenadier Mni. Grenade Launcher blasted off. 01835_ Aluminum Leg destroyed. 01836_ D-53 Grenadier knocked back. 01837_ The unstable cave ceiling collapses. 01837_ Lgt. Cannon destroyed. Map ----- +----------------------------------------------------+ | ????????????????###???????# ### #?? | | ?????????????############?# ???? | | ?????????????#### #######?# """ ?????? | | ????????????? % ##?# """ #??????? | | ?????????????## ##?# """ #??????? | | ?????????????## ##### #??????? | | ????????????### %% ######## ######??????? | | ???????????#### %* ####### #######?????? | | ??????????#### = #### ! !! #?????? | | ??????????### ### ##### #?????? | | ??????????## ### ## ! ###????????? | | ??????????## #### ### ##????? | | ??????????### ##### ###???? | | ??????????### ##?#### #####? | | ???????????### ####??### ### | | ???????????### #????## ## | | ????????????### ##????### | | ????????????### ##???######## | | ????????????### d##????######### ? | | ????????????# ##??????????#### ? | | ????????????# d]%##???????????## ?? | | ????????????## ##???##???????? ?? | | ????????????# ## #???????? ##??? | | ????????????# #?????????###??? | | ????????????# #??????????????? | | ????????????### @ #??????????????? | | ?????????????## ##??????????????? | | ??????????????## #% ######??????????????? | | ???????????????### ######??????????????? | | ?????????????????## ##???????????????????? | | ??????????????????#### ##????????????????????? | | ?????????????????????? #?????????????????????? | | ?????????????????????? #?????????????????????? | | ?????????????????????? #?????????????????????? | | ?????????????????????? ?????????????????????? | | ?????????????????????? ?????????????????????? | | ??????????????????????##?????????????????????? | | ?????????????????????????????????????????????? | | ?????????????????????????????????????????????? | | ?????????????????????????????????????????????? | | ?????????????????????????????????????????????? | | ?????????????????????????????????????????????? | | ?????????????????????????????????????????????? | | ?????????????????????????????????????????????? | | ?????????????????????????????????????????????? | | ?????????????????????????????????????????????? | | ?????????????????????????????????????????????? | | ?????????????????????????????????????????????? | | ?????????????????????????????????????????????? | | ?????????????????????????????????????????????? | +----------------------------------------------------+ Best States ------------- Heat Dissipation 35 Energy Generation 14 Energy Capacity 265 Matter Stores 300 Matter Capacity 300 Sight Range 16 Terrain Scan Density 10 Evasion (%) 55 Item Schematics ----------------- Lrg. Storage Unit | -10/Materials | Hacked Robot Schematics ------------------ None Fabricated ------------ Nothing Alien Tech Used ----------------- None Achievements -------------- None Challenges ------------ None Game ------ Seed ScatterDisruptorThrower Manual? 0 Play Time 00:21:15 Cumulative 26.1 hours Start 2022.03.22 @ 22:22:15 End 2022.03.22 @ 22:42:30 Sessions 1 Manual Loads 0 Difficulty Rogue Special Mode None Game No. 23 Rogue 23 Adventurer 0 Explorer 0 Win Type - Total 1 Types 1/0/0/0/0/0/0/0/0 Lore% 42 Gallery% 36 Achievement% 40 Wizard Run 0 Options --------- ASCII 0 Keyboard 1 Movement Vi Keybinds 0 Fullscreen 2 Font 24/Proggy Map View 76x50 Tactical HUD 1 Map Filters NONE Filters NONE Steam 1 RUN: 51481ede-f50e-4165-bd84-acc89fe05ee1